Workbook

Sheet Приложение к Прайсу Сер.Шаляпин (hidden)
E1: Утверждаю
A5: ПРИЛОЖЕНИЕ К ПРАЙСУ
A6: на 2020-2021 учебный год
A8: Возраст | B8: Специалисты | C8: График | D8: Кол. в месяц | E8: Стоимость
A9: 3 года + "Я ПОЗНАЮ МИР": ▪ Развивающий курс 3+ - ▪Английский язык ▪Диагностика логопеда, Диагностика психолога, ▪2 тренинга для родителей, | B9: ▪Преподаватель раннего обучения. преподаватель английского языка . ▪Психолог | C9: 2-3 раза/нед. - 2-1.5 час. | D9: 24 | E9: 4500
A10: 3 года + "Я ПОЗНАЮ МИР": развивающий курс 3+, диагностика психолога, 2 тренинга для родителей, английский язык | B10: ▪Преподаватель раннего обучения. преподаватель английского языка . ▪Психолог | C10: 1 раза/нед. -1,5 часа | D10: 8 зан | E10: 3000
A11: 4 года + "Я МОДЕЛИРУЮ МИР": ▪Развивающий курс 4+ ▪Английский язык ▪Диагностика логопеда и психолога ▪2 тренинга для родителей | B11: ▪Преподаватель раннего обучения. преподаватель английского языка . ▪Психолог | C11: 2-3 раза/нед. - 2,5-2 час. З | D11: 24 | E11: 5400
A12: Индивидуальные занятия в неурочное время | E12: 800

Sheet клуб Серова- Спарт Малокомплекн (hidden)
G1: Утверждаю
G2: Директор ЧДОУ "Школа Кенгуру" Шепелина Е.М.
G3: 2021-08-19
G4: ____________________
A5: ПРАЙС
A6: Образовательных услуг для детей по программе дополнительного образования "Я — другой" в малокомплектных группах и (или) индивидуально на 2020-2021 учебный год
C7: Стартовый комплект-комплекс
C8: для 5 - 6 лет | D8: для 3 - 4 года | E8: Я сам
C9: 4000 | D9: 3200 | E9: 1500
B11: Образовательные КОМПЛЕКСЫ
A12: Возраст | B12: Специалисты | C12: График | D12: кол-во занятий в месяц | E12: 1-й год обучения | F12: 2-ой год обучения | G12: 3-ий год обучения | H12: Пробное/ разовое занятие
A13: 2,5 года + "Я САМ": ▪Развивающий комплекс ▪Английский язык ▪Ритмика ▪Сопровождение психолога | B13: ▪Преподаватель по раннему обучению ▪Психолог | C13: 2 раза/нед - 1 час | D13: 16 | E13: 6500 | G13: - | H13: акция
A15: 3 года + "Я ПОЗНАЮ МИР": ▪ Развивающий курс 3+ - ▪Английский язык - ▪Арт-студия - ▪Диагностика логопеда, Диагностика психолога, ▪2 тренинга для родителей, | B15: ▪Преподаватель раннего обучения. преподаватель английского языка . Преподаватель артстудии, ▪Психолог | C15: 2 раза/нед. -1.5-2 час. | D15: 20 | E15: 7900 | F15: 7400 | G15: -
A16: 4 года + "Я МОДЕЛИРУЮ МИР": ▪Развивающий курс 4+ ▪Английский язык ▪Артстудия ▪Диагностика логопеда и психолога ▪2 тренинга для родителей | B16: ▪Преподаватель раннего обучения. преподаватель английского языка . Преподаватель артстудии ▪Психолог | C16: 2 раза/нед. - 2-2.5час. | D16: 20 | E16: 9300 | F16: 7900
A17: 5, 6 лет "ПРЕДШКОЛЬНАЯ ПОДГОТОВКА" ▪ Развивающий курс 5+ (или 6+) ▪Английский язык ▪Психолог ▪Логопед ▪Диагностика логопеда и психолога с выдачей результатов ▪2 тренинга для родителей | B17: ▪Преподаватель предшкольного образования, преподаватель английского языка ▪Логопед ▪Психолог | C17: 2 раза/нед. х 2 час. | D17: 16 | E17: 7600 | F17: 7200 | G17: 6800
B20: Образовательные КОМПЛЕКСЫ
B21: реализуемые в группах выходного дня 3-4 года
C22: Стартовый комплект | D22: 3200 рублей
A23: Возраст | B23: Специалисты | C23: График | D23: кол-во занятийв месяц | E23: 1-й год обучения | F23: 2-ой год обучения | G23: Пробное занятие
A24: 3 года + "Я ПОЗНАЮ МИР": развивающий курс 3+, диагностика психолога, 2 тренинга для родителей, арт-студия, английский язык | B24: ▪Преподаватель раннего обучения. преподаватель английского языка . Преподаватель артстудии, ▪Психолог | C24: 1 раза/нед. -2 часа | D24: 12 зан | E24: 5600 | F24: 5200 | G24: акция
B26: Развивающие КУРСЫ
C27: стартовый комплект | D27: 1500
A28: Возраст | B28: Специалисты | C28: График | D28: кол-во занятийв месяц | E28: Стоимость в мес-ц | F28: Гостевое занятие
A29: Развивающий КУРС 3 года + ▪Математика ▪Развитие речи ▪ Чтение ▪Постановка руки ▪Окружающий мир | B29: ▪Преподаватель раннего обучения | C29: 2 раза/нед. - 45 минут | D29: 16 | E29: 4700 | F29: акция
A30: Развивающий КУРС 4 года + ▪Развитие речи ▪ Чтение ▪Постановка руки ▪Математика ▪Окружающий мир ▪Конструирование | B30: ▪Преподаватель раннего обучения | C30: 2 раза/нед. - 1 час | D30: 16 | E30: 5400 | F30: акция
A31: Развивающий КУРС 5 лет + ▪Развитие речи ▪ Чтение ▪Постановка руки ▪Математика ▪Окружающий мир ▪Конструирование ▪Логика ▪Риторика | B31: Преподаватель предшкольного образования | C31: 2 раза/нед. - 1,15час | D31: 16 | E31: 6000 | F31: акция
A32: 6-8 лет( 2 половина года) Экспресс - курс "ПРЕДШКОЛЬНАЯ ПОДГОТОВКА" (начальные навыки чтения , счета, подготовка руки к письму) | B32: ▪Преподаватель предшкольного образования | C32: 2 раза/нед. или 1 раз/нед по 45 мин | D32: 2019-04-16 | E32: 4000/2700 | F32: акция
A33: 6-9 лет( 2 половина года) Экспресс - курс "ПРЕДШКОЛЬНАЯ ПОДГОТОВКА" (начальные навыки чтения , счета, подготовка руки к письму) с учетом психологических особенностей ребенка | B33: ▪Преподаватель предшкольного образования | C33: 1-5 раз/нед. или 1 раз/нед по 45 мин | D33: 4-20 | E33: 800 руб/занятие
A35: КУРСЫ
A37: Стартовый комплект = Стоимости учебного пособия. Второй год Read пособие не покупает
A38: Возраст | B38: Специалисты | C38: График | D38: кол-во занятий | E38: 1-й год обучения | F38: 2-ой год обучения
A39: АНГЛИЙСКИЙ ЯЗЫК 3+ | B39: ▪Педагог | C39: 2 раза/нед. Х 30 мин | D39: 8 занятий в месяц | E39: 4000 | F39: 3600
A40: АНГЛИЙСКИЙ ЯЗЫК 5+ | B40: ▪Педагог | C40: 2 раза/нед. Х 45 мин | D40: 8 занятий в месяц | E40: 4700 | F40: 4300

Sheet Прайс по организации досуга (hidden)
A1: ПРАЙС
A2: На услуги по организации детско-родительского досуга
B3: на 2021-2022 учебный год
A4: Возраст | B4: Специалисты | C4: График | D4: Продолжительность | E4: Стоимость в мес-ц 1 год | F4: Стоимость в КОМПЛЕКСЕ с другими предметами | G4: Разовое занятие(родитель+ребенок) | H4: пробное до 01.10.2021
A5: "МАМА+МАЛЫШ" развивающие занятия для детей от1г до3х лет | B5: педагого раннего обучения | C5: 8 встреч в месяц | E5: 3500 | F5: 3000 | G5: 500 | H5: 250
A6: Арт-студия для малышей и мам | B6: педагого раннего обучения | C6: 4 встреч в мес | E6: 1200 | F6: 800 | G6: 400 | H6: 250
A7: ТЕАТР СЛОВ | B7: ▪Педагог | C7: 1 раза/нед. Х 40 мин. | E7: 2500 | F7: 1800 | H7: 250
A8: СЕНД-АРТ | B8: ▪Педагог | C8: 1 раза/нед. Х 40 мин. | E8: 1600 | F8: 1000 | H8: 250
A9: АРТСТУДИЯ | B9: ▪Педагог | C9: 1 раза/нед. Х 30 мин\45 мин. | E9: 2000 | F9: 1500 | H9: 250

Sheet КЛУБЫ 2023-2024
B1: ПРАЙС игровой досуговой деятельности на сезон 2023-24
B3: ИГРОВЫЕ КОМПЛЕКСЫ 2 РАЗА В НЕДЕЛЮ
B5: Стартовый комплект-комплекс | C5: для 5 - 6 лет | D5: для 3 - 4 года | E5: Я сам | F5: выходного дня
C6: 4000 | D6: 2700 | E6: 1500 | F6: 3200
B7: Возраст | C7: Специалисты | D7: График | E7: Кол-во посещений в месяц | F7: Стоимость | G7: Стоимость для продолжающих | H7: Разовое посещение | I7: Пробное до 01.10.2023
B8: от 8 мес до 2,5 лет "ИНТОНИКА" музыкальный клуб для мам и детей | C8: ▪музыкант, специалист раннего развития | D8: 2 раза/нед. -1ч / 1 раз/нед. -1ч | E8: аб. на 8 зан (на 1,5 месяца) аб. на 8 зан (на 1 месяц) аб. на 4 зан (на 1,5 месяца) аб. на 4 зан (на 1 месяц) | F8: 5600 4500 3200 2700 | G8: 10% | H8: 1000 | I8: 500
B9: 1,5 г до 3х лет "МАМА+МАЛЫШ" клуб для мам и детей от | C9: ▪специалист раннего развития | D9: 2 раза/нед. -1ч / 1 раз/нед. -1ч | E9: аб. на 8 зан (на 1,5 месяца) аб. на 8 зан (на 1 месяц) аб. на 4 зан (на 1,5 месяца) аб. на 4 зан (на 1 месяц) | F9: 5600 4500 3200 2700 | G9: 10% | H9: 1000
B10: 2,8 года+ "Я САМ" ▪ Игровой курс 2,5+ ▪ Английский клуб ▪ Игры с психологом ▪тестопластика/рисование | C10: ▪Специалист раннего развития ▪Специалист английского языка ▪Психолог | D10: 2 раза/нед. -1ч | E10: 8 | F10: 6300 | G10: 5670
B11: 3 года + "Я ПОЗНАЮ МИР": ▪ Игровой курс 3+ ▪ Английский клуб ▪ Игры с психологом ▪2 тренинга для родителей | C11: ▪Специалист развивающего игрового курса ▪Специалист английского языка ▪Психолог | D11: 2 раза/нед. -1ч15мин | E11: 8 | F11: 7500 | G11: 6750 | I11: 500
B12: 4 года + "Я МОДЕЛИРУЮ МИР": ▪ Игровой курс 4+ ▪ Английский клуб ▪ Игры с психологом ▪ 2 тренинга для родителей | C12: ▪Специалист развивающего игрового курса ▪Специалист английского языка ▪Психолог | D12: 2 раза/нед. -1.5ч | E12: 8 | F12: 7500 | G12: 6750
B13: 5 - 7 лет "ПРЕДШКОЛА" ▪ Игровой курс 5+ (или 6+) ▪ Английский клуб ▪ Игры с психологом ▪ 2 тренинга для родителей | C13: ▪Специалист развивающего игрового курса ▪Специалист английского языка ▪Психолог | D13: 2 раза/нед -2ч | E13: 8 | F13: 8200 | G13: 7380
B15: ИГРОВЫЕ КОМПЛЕКСЫ ВЫХОДНОГО ДНЯ
B16: Возраст | C16: Специалисты | D16: График | E16: Кол-во посещений в месяц | F16: Стоимость | G16: Стоимость для продолжающих | H16: Разовое посещение | I16: Пробное до 01.10.2023
B17: 3 года + "Я ПОЗНАЮ МИР": 3 ПРЕДМЕТА : ▪ Игровой курс 3+ ▪Английский клуб ▪Арт -студия ▪2 тренинга для родителей | C17: ▪Специалист по раннему развитию ▪Специалист английского языка ▪Специалист артстудии ▪Психолог | D17: 1 раз/нед. 2 часа | E17: 4 | F17: 5800 | G17: 5220 | H17: 1500 | I17: 500
B18: 3 года+ "Я ПОЗНАЮ МИР": 2 ПРЕДМЕТА : ▪ Игровой курс 3+ ▪Арт -студия ▪2 тренинга для родителей | C18: ▪Специалист по раннему развитию ▪Специалист английского языка ▪Психолог | D18: 1 раз/ нед. 1ч30мин | E18: 4 | F18: 4500 | G18: 4050 | H18: 1300
B19: 4 года+ "Я МОДЕЛИРУЮ МИР" 3 ПРЕДМЕТА : ▪ Игровой курс 4+ ▪Английский клуб ▪Арт -студия ▪2 тренинга для родителей | C19: ▪Специалист по раннему развитию ▪Специалист английского языка ▪Психолог | D19: 1 раз/ нед. 1ч30мин | E19: 4 | F19: 5800 | G19: 5220 | H19: 1500
B20: 4 года+ "Я МОДЕЛИРУЮ МИР" 2 ПРЕДМЕТА : ▪ Игровой курс 4+ ▪Английский клуб ▪2 тренинга для родителей | C20: ▪Специалист по раннему развитию ▪Специалист английского языка ▪Психолог | D20: 1 раз/ нед. 1ч30мин | E20: 4 | F20: 4500 | G20: 4050 | H20: 1300
B21: 5-7 лет "ПРЕДШКОЛА" 3 ПРЕДМЕТА : ▪ Игровой курс ▪Английский клуб ▪Артстудия ▪2 тренинга для родителей | C21: ▪Специалист по раннему развитию ▪Специалист английского языка И Арс-тудии ▪Психолог | D21: 1 раз/ нед. 2часа | E21: 4 | F21: 6000 | G21: 5220 | H21: 1600
B22: 5-7 лет "ПРЕДШКОЛА" 2 ПРЕДМЕТА : ▪ Игровой курс ▪Артстудия ИЛИ Англ.яз ▪2 тренинга для родителей | C22: ▪Педагог игрового курса ▪Специалист английского языка ИЛИ Арт-студии ▪Психолог | D22: 1 раз/ нед. 2часа | E22: 4 | F22: 4800 | G22: 4050 | H22: 1300
B24: ИГРОВЫЕ КУРСЫ
B25: Стартовый комплект 2000 рублей
B26: Возраст | C26: Специалисты | D26: График | E26: Кол-во посещений в месяц | F26: стоимость | G26: Стоимость для продолжающих | H26: Разовое посещение | I26: Пробное до 01.10.2023
B27: Игровой курс "Синтез искусств"2,6+ *тестопластика * сенд- арт *рисование гуашью и акварелью *аппликация *музыкальные игры *логоритмические игры | C27: ▪Специалист по раннему развитию ▪Психолог | D27: 1 раз/нед 1 час | E27: 4 | F27: 4000 | G27: 3600 | H27: 1500 | I27: 350
B28: Игровой КУРС Я САМ 2.5 года + ▪ Игровой комплекс ▪ Тестопластика\Рисование ▪ Игры с психологом | C28: ▪Специалист по раннему развитию ▪Психолог | D28: 2 раза/нед. - 50 минут | E28: 8 | F28: 5200 | G28: 4680
B29: Игровой КУРС 3 года + ▪Веселая математика ▪Играем с кубиками Зайцева ▪Пальчиковые игры ▪Мир вокруг ▪ Игры с психологом | C29: ▪Специалист развивающего игрового курса ▪Психолог | D29: 2 раза/нед. - 45 минут | E29: 8 | F29: 5200 | G29: 4680
B30: Игровой КУРС 4 года + ▪ Веселая математика ▪ Играем с кубиками Зайцева ▪ Пальчиковые игры ▪ Мир вокруг ▪ Игры с психологом | C30: ▪Специалист развивающего игрового курса ▪Психолог | D30: 2 раза/нед. - 1 час | E30: 8 | F30: 5200 | G30: 4680
B31: "Игровой КУРС 5л+, 6л+ ▪Веселая математика ▪Играем с кубиками Зайцева ▪Пальчиковые игры ▪Мир вокруг ▪ Логика ▪Развивающие игры В.Воскобовича ▪ Игры с психологом | C31: ▪Специалист развивающего игрового курса ▪Психолог | D31: 2 раза/нед. - 1ч15мин | E31: 8 | F31: 6000 | G31: 5400
B33: АНГЛИЙСКИЙ КЛУБ
B34: Стартовый комплект | C34: для 5 - 6 лет | D34: для 3 - 4 года | E34: 6+
C35: 3200 | D35: 1100 | E35: Read и Write- 3000
B36: Возраст | C36: Специалисты | D36: График | E36: Кол-во посещений в месяц | F36: Стоимость | G36: Стоимость для продолжающих | H36: Разовое посещение | I36: Пробное до 01.10.2023
B37: АНГЛИЙСКИЙ КЛУБ 2+ | C37: Специалист по английскому языку | D37: 2 раза/нед. 15мин | E37: 8 | F37: 2200 | G37: 1980 | H37: 300 | I37: 250
B38: АНГЛИЙСКИЙ КЛУБ 3+ | C38: Специалист по английскому языку | D38: 2 раза/нед. 30мин | E38: 8 | F38: 4800 | G38: 4320 | H38: 800 | I38: 350
B39: АНГЛИЙСКИЙ КЛУБ 4+ | C39: Специалист по английскому языку | D39: 2 раза/нед. 30мин | E39: 8 | F39: 4800 | G39: 4320 | H39: 800
B40: АНГЛИЙСКИЙ КЛУБ 5+ | C40: Специалист по английскому языку | D40: 2 раза/нед. 45мин | E40: 8 | F40: 5200 | G40: 4680 | H40: 900
B42: ТВОРЧЕСКИЕ МАСТЕРСКИЕ
B43: Возраст | C43: Специалисты | D43: График | E43: Кол-во посещений в месяц | F43: Стоимость | G43: Стоимость (в комплексе с РК+Анг.) | H43: Разовое посещение | I43: Пробное до 01.10.2023
B44: АКТЕРСКОЕ МАСТЕРСТВО (5-8 лет) | C44: Специалист по актерскому мастерству | D44: 2 раза/нед. 60мин | E44: 8 / 4 | F44: 5200 / 3000 | G44: 4680 / 2700 | H44: 800 | I44: 350
B45: АРТ-СТУДИЯ (3-8 лет) | C45: Художник | D45: 1 раза/нед. 30мин/45 мин. | E45: 4 | F45: 3000 | G45: 2700 | H45: 800 | I45: 350
B46: РОБОТОТЕХНИКА (5-7 лет) | C46: Специалист по робототехники | D46: 1 раз/нед. 60мин. | E46: 4 | F46: 3500 | G46: 3150 | H46: 900 | I46: 400
B47: ШАХМАТЫ 4+ | C47: Специалист по шахматам | D47: 1 раз/нед. 30мин. | E47: 4 | F47: 2200 | G47: 2000 | H47: 700 | I47: 350
B48: ШАХМАТЫ 6+ | C48: Специалист по шахматам | D48: 1 раз/нед. 30мин. | E48: 4 | F48: 2200 | G48: 2000 | H48: 700 | I48: 350
B49: МЕНТАЛЬНАЯ АРИФМЕТИКА | C49: Специалист по ментальной арифметики | D49: 2 раз/нед. 60мин. | E49: 8 | F49: 6000 | G49: 5600 | H49: 900 | I49: 500
B50: Малокомплектная группа - Группа по 3-4 человек + 10% от стоимости курса
E51: Индивидуальные занятия | F51: плюс 30% | G51: от стоимости отдельного игрового крса по возрасту
B52: Английский язык 4+(30 мин) | C52: 800 рублей занятие | E52: занятия
B53: Английский язык 5+( 45 мин) | C53: 900 рублей занятие
B54: Развивающий курс 4+(45 мин) | C54: 900 рублей занятие
B55: Развивающий курс 5+(1 час) | C55: 1000 рублей занятие

Sheet Лист15 (hidden)

Sheet КЛУБЫ 2022-2023 (hidden)
B2: Услуг для детей по досуговой деятельности на 2022-2023 учебный год
B3: ИГРОВЫЕ КОМПЛЕКСЫ 2 РАЗА В НЕДЕЛЮ
B5: Стартовый комплект-комплекс
C6: для 5 - 6 лет | D6: для 3 - 4 года | E6: Я сам | F6: выходного дня
C7: 4000 | D7: 2700 | E7: 1500 | F7: 3200
B8: Возраст | C8: Специалисты | D8: График | E8: кол-во встреч | F8: стоимость | G8: Стоимость в КОМПЛЕКСЕ с другими курсами | H8: Разовое (родитель+ребенок) | I8: пробное до 01.10
B9: "МАМА+МАЛЫШ" клуб для мам и детей от1г до3х лет | C9: ▪специалист раннего развития | D9: 8 встреч в месяц | E9: 8 встреч в месяц | F9: 4000 | G9: 3000 | H9: 600 | I9: 300
B10: АРТ СТУДИЯ ДЛЯ МАМ И МАЛЫШЕЙ | C10: ▪специалист раннего развития | D10: 4 встречи в месяц | E10: 4 встречи в месяц | F10: 1500 | G10: 1000 | H10: 500 | I10: 300
B11: 3 года + "Я ПОЗНАЮ МИР": ▪ Игровой курс 3+ ▪Английский клуб ▪ Игры с психологом ▪2 тренинга для родителей | C11: ▪Специалист дошкольного образования ▪Специалист английского языка ▪Психолог | D11: 2 раза/нед. -1ч15мин | E11: 16 | F11: 6300 | H11: 950 | I11: 600
B12: 4 года + "Я МОДЕЛИРУЮ МИР": ▪ Игровой курс 4+ ▪Английский клуб ▪Игры с психологом ▪2 тренинга для родителей | C12: ▪Специалист дошкольного образования ▪Специалист английского языка ▪Психолог | D12: 2 раза/нед. - 1.5ч | E12: 16 | F12: 6300 | H12: 950
B13: 5-7 лет "ПРЕДШКОЛА" ▪ Игровой курс 5+ (или 6+) ▪Английский клуб ▪Игры с психологом ▪2 тренинга для родителей | C13: ▪Специалист дошкольного образования ▪Специалист английского языка ▪Психолог | D13: 2 раза/нед - 2ч | E13: 16 | F13: 6800 | H13: 980
B14: ИГРОВЫЕ КОМПЛЕКСЫ ВЫХОДНОГО ДНЯ
B15: Возраст | C15: Специалисты | D15: График | E15: кол-во посещений | F15: стоимость | H15: Разовое посещение | I15: Пробное
B16: 3 года + "Я ПОЗНАЮ МИР": ▪ Игровой курс 3+ ▪Английский клуб ▪Арт -студия ▪Игры с психологом ▪2 тренинга для родителей | C16: ▪Специалист по раннему развитию ▪Специалист английского языка ▪Специалист артстудии ▪Психолог | D16: 1 раз/нед. 1ч45мин | E16: 8 | F16: 4900 курс без тестопластики - 3900 | H16: 1250/1000 | I16: 600
B17: 3 года+ "3В "Я познаю мир" ▪ Игровой курс 3+ ▪Английский клуб ▪Игры с психологом ▪2 тренинга для родителей | C17: ▪Специалист по раннему развитию ▪Специалист английского языка ▪Психолог | D17: 1 раз/ нед. 1ч30мин | E17: 2023-08-04 | F17: 3900 | H17: 1000 | I17: 600
B18: 4 года + "4В ▪ Игровой курс 4+ ▪Английский клуб ▪Игры с психологом ▪2 тренинга для родителей | C18: ▪Специалист по раннему развитию ▪Специалист английского языка ▪Психолог | D18: 1 раз/ нед. 1ч30мин | E18: 2023-08-04 | F18: 3900 | H18: 1000 | I18: 600
B19: 5-7 лет "5-7 В ▪ Игровой курс 5+ ▪Английский клуб ▪Игры с психологом ▪2 тренинга для родителей | C19: ▪Специалист по раннему развитию ▪Специалист английского языка ▪Психолог | D19: 1 раз/ нед. 2часа | E19: 2023-08-04 | F19: 3900 | H19: 1000 | I19: 600
B20: 5+ лет ▪ Игровой курс 5+ (или 6+) ▪Английский клуб (погружение в языковую среду) -Арт -студия ▪ Игры с психологом ▪2 тренинга для родителей | C20: ▪Специалист дошкольного образования ▪Специалист английского языка ▪Психолог | D20: 1раз/нед - 2ч 10мин | E20: 8 | F20: 4900 | H20: 1300 | I20: 1300
B23: ИГРОВЫЕ КУРСЫ
D25: стартовый комплект | E25: 2000
B26: Возраст | C26: Специалисты | D26: График | E26: кол-во посещений | F26: стоимость | G26: Стоимость в КОМПЛЕКСЕ с другими курсами | H26: Разовое (родитель+ребенок) | I26: Пробное посещение
B27: Игровой курс 2,6+ *тестопластика * сенд- арт *рисование гуашью и акварелью *аппликация *музыкальные игры *логоритмические игры | C27: ▪Специалист по раннему развитию ▪Психолог | D27: 1 раз/нед | E27: 4 | F27: 2800 | H27: 850
B28: Игровой КУРС Я САМ 2.5 года + ▪Игровой комплекс ▪ Тестопластика\Рисование ▪ Игры с психологом | C28: ▪Специалист по раннему развитию ▪Психолог | D28: 2 раза/нед. - 50 минут | E28: 8 | F28: 4400 | H28: 650 | I28: 600
B29: Игровой КУРС 3 года + ▪Веселая математика ▪Играем с кубиками Зайцева ▪Пальчиковые игры ▪Мир вокруг ▪ Игры с психологом | C29: ▪Специалист дошкольного образования ▪Психолог | D29: 2 раза/нед. - 45 минут | E29: 8 | F29: 4400 | H29: 650 | I29: 600
B30: Игровой КУРС 4 года + ▪Веселая математика ▪Играем с кубиками Зайцева ▪Пальчиковые игры ▪Мир вокруг ▪ Игры с психологом | C30: ▪Специалист дошкольного образования ▪Психолог | D30: 2 раза/нед. - 1 час | E30: 8 | F30: 4400 | H30: 650 | I30: 600
B31: "Игровой КУРС 5+ ▪Веселая математика ▪Играем с кубиками Зайцева ▪Пальчиковые игры ▪Мир вокруг ▪ Логика ▪Развивающие игры В.Воскобовича ▪ Игры с психологом | C31: ▪Специалист дошкольного образования ▪Психолог | D31: 2 раза/нед. - 1ч15мин | E31: 8 | F31: 4800 | H31: 700 | I31: 600
B33: АНГЛИЙСКИЙ КЛУБ
B35: Возраст | C35: Специалисты | D35: График | E35: кол-во посещений | F35: стоимость | G35: Стоимость в КОМПЛЕКСЕ с другими курсами | H35: Разовое посещение | I35: Пробное
B36: АНГЛИЙСКИЙ КЛУБ 2+ | C36: ▪Специалист по английскому языку | D36: 2 раза/нед. Х 15 мин | E36: 8 посещений в месяц | F36: 1800 | G36: 1200 | H36: 250 | I36: 250
B37: АНГЛИЙСКИЙ КЛУБ 3+ | C37: ▪Специалист по английскому языку | D37: 2 раза/нед. Х 30 мин | E37: 8 посещений в месяц | F37: 4000 | G37: 3500 | H37: 600 | I37: 450
B38: АНГЛИЙСКИЙ КЛУБ 4+ | C38: ▪Специалист по английскому языку | D38: 2 раза/нед. Х 30 мин | E38: 8 посещений в месяц | F38: 4000 | G38: 3500 | H38: 600
B39: АНГЛИЙСКИЙ КЛУБ 5+ | C39: ▪Специалист по английскому языку | D39: 2 раза/нед. Х 45 мин | E39: 8 посещений в месяц | F39: 4400 | G39: 4000 | H39: 650
B40: СУББОТНИЙ АНГЛИЙСКИЙ КЛУБ 5+ | C40: ▪Специалист по английскому языку | D40: 1 раз/нед. Х 30 мин | E40: 4 посещений в месяц | F40: 2500 | G40: 2250 | H40: 700
B42: ТВОРЧЕСКИЕ МАСТЕРСКИЕ
B44: Возраст | C44: Специалисты | D44: График | E44: кол-во посещений | F44: стоимость | G44: Стоимость в КОМПЛЕКСЕ с другими курсами | H44: Разовое посещение | I44: Пробное
B45: АКТЕРСКОЕ МАСТЕРСТВО (5-8 лет) | C45: Педагог актерского мастерства | D45: 2 раза/нед. Х 45 мин | E45: 8 занятий в месяц | F45: 4800 | G45: 3500 | H45: 800 | I45: 500
B46: СЕНД-АРТ (3-8 лет) | C46: ▪Художник | D46: 1 раза/нед. Х 40 мин. | E46: 4 занятия в месяц | F46: 1600 | G46: 1000 | H46: - | I46: 500
B47: АРТСТУДИЯ (3-8 лет) | C47: ▪Художник | D47: 1 раза/нед. Х 30 мин\45 мин. | E47: 4 занятия в месяц | F47: 2500 | G47: 2000 | H47: 650 | I47: 400
B48: РОБОТОТЕХНИКА (4-8 лет) | C48: ▪ | D48: Х раза/нед. Х ХХ мин\ХХ мин. | E48: 4 занятия в месяц | F48: 2400 | G48: Х | H48: - | I48: 650
B49: Малокомплектная группа - Группа по 3-4 человек + 10% от стоимости курса

Sheet Лист5 (hidden)
A1: Прайс услуг для детей по досуговой деятельности на 2022-2023 год.
A2: ИГРОВЫЕ КОМПЛЕКСЫ 2 РАЗА В НЕДЕЛЮ
B3: для 5 - 6 лет | C3: для 3 - 4 года | D3: Я сам | E3: выходного дня
B4: 4000 | C4: 2700 | D4: 1500 | E4: 3200
A5: Возраст | B5: Специалисты | C5: График | D5: кол-во встреч | E5: стоимость | F5: Стоимость в КОМПЛЕКСЕ(+арт) | G5: Разовое (родитель+ребенок) | H5: пробное до 01.10
A6: "МАМА+МАЛЫШ" клуб для мам и детей от 1г до3х лет | B6: ▪специалист раннего развития | C6: 8 встреч в месяц | D6: 8 встреч в месяц | E6: 4000 | F6: 3000 | G6: 600 | H6: 300
A7: АРТ СТУДИЯ ДЛЯ МАМ И МАЛЫШЕЙ | B7: ▪специалист раннего развития | C7: 4 встреч в месяц | D7: 4 занятия в месяц | E7: 1500 | F7: 1000 | G7: 500 | H7: 300
A8: 3 года + "Я ПОЗНАЮ МИР": ▪ Игровой курс 3+ ▪Английский клуб ▪Игры с психологом ▪2 тренинга для родителей | B8: ▪Специалист дошкольного образования ▪Специалист английского языка ▪Психолог | C8: 2 раза/нед. -1ч15мин | D8: 16 | E8: 6300 | G8: 950 | H8: 600
A9: 4 года + "Я МОДЕЛИРУЮ МИР": ▪ Игровой курс 4+ ▪Английский клуб ▪Игры с психологом ▪2 тренинга для родителей | B9: ▪Специалист дошкольного образования ▪Специалист английского языка ▪Психолог | C9: 2 раза/нед. - 1.5ч | D9: 16 | E9: 6300 | G9: 950
A10: 5-7 лет ▪ Игровой курс 5+ (или 6+) ▪Английский клуб ▪Игры с психологом ▪2 тренинга для родителей | B10: ▪Специалист дошкольного образования ▪Специалист английского языка ▪Психолог | C10: 2 раза/нед - 2ч | D10: 16 | E10: 6800 | G10: 980
A11: ИГРОВЫЕ КОМПЛЕКСЫ ВЫХОДНОГО ДНЯ
A12: Возраст | B12: Специалисты | C12: График | D12: кол-во посещений | E12: стоимость | G12: Разовое | H12: Пробное посещение
A13: 3В года + "Я ПОЗНАЮ МИР": ▪ Игровой курс 3+ ▪Английский клуб ▪Арт -студия ▪2 тренинга для родителей | B13: ▪Специалист по раннему развитию ▪Специалист английского языка ▪Специалист артстудии ▪Психолог | C13: 1 раз/нед. 1ч45мин | D13: 2012-08-04 | E13: 4900 | G13: 1250/1000 | H13: 600
A14: 3 года+ "3В "Я познаю мир" ▪ Игровой курс 3+ ▪Английский клуб Игры с психологом ▪2 тренинга для родителей | B14: ▪Специалист по раннему развитию ▪Специалист английского языка ▪Психолог | C14: 1 раз/ нед. 1ч30мин | D14: 2023-08-04 | E14: 3900 | G14: 1000 | H14: 600
A15: 4 года + "4В ▪ Игровой курс 4+ ▪Английский клуб ▪2 тренинга для родителей | B15: ▪Специалист по раннему развитию ▪Специалист английского языка | C15: 1 раз/ нед. 1ч30мин | D15: 2023-08-04 | E15: 3900 | G15: 1000 | H15: 600
A16: 5-7 лет "5-7 В + ▪ Игровой курс 5+ ▪Английский клуб ▪2 тренинга для родителей | B16: ▪Специалист по раннему развитию ▪Специалист английского языка | C16: 1 раз/ нед. 2часа | D16: 2023-08-04 | E16: 3900 | G16: 1000 | H16: 600
A17: 5+ лет ▪ Игровой курс 5+ (или 6+) ▪Английский клуб(погружение в языковую среду) -Арт -студия ▪2 тренинга для родителей | B17: ▪Специалист дошкольного образования ▪Специалист английского языка | C17: 1раз/нед - 2ч 15мин | D17: 8 | E17: 4900 | G17: 1300 | H17: 1300
A20: ИГРОВЫЕ КУРСЫ
D22: 2000
A23: Возраст | B23: Специалисты | C23: График | D23: кол-во посещений | E23: стоимость | F23: Стоимость в КОМПЛЕКСЕ | G23: Разовое посещение (родитель+ребенок) | H23: Пробное посещение
A24: Игровой курс 2,6 + *тестопластика * сенд- арт *рисование гуашью и акварелью *аппликация *музыкальные игры | B24: ▪Специалист по раннему развитию ▪Психолог | C24: 1 раз/нед | D24: 4 | E24: 2800 | G24: 850
A25: Игровой КУРС Я САМ 2.5 года + ▪Игровой комплекс ▪Тестопластика\Рисование ▪ Игры с психологом | B25: ▪Специалист по раннему развитию ▪Психолог | C25: 2 раза/нед. - 50 минут | D25: 8 | E25: 4400 | G25: 650 | H25: 600
A26: Игровой КУРС 3 года + ▪Веселая математика ▪Играем с кубиками Зайцева ▪Пальчиковые игры ▪Мир вокруг ▪ | B26: ▪Специалист дошкольного образования ▪Психолог | C26: 2 раза/нед. - 45 минут | D26: 8 | E26: 4400 | G26: 650 | H26: 600
A27: Игровой Курс 4 года + ▪Веселая математика ▪Играем с кубиками Зайцева ▪Пальчиковые игры ▪Мир вокруг | B27: ▪Специалист дошкольного образования ▪Психолог | C27: 2 раза/нед. - 1 час | D27: 8 | E27: 4400 | G27: 650 | H27: 600
A28: Игровой КУРС 5+ ▪Веселая математика ▪Играем с кубиками Зайцева ▪Пальчиковые игры ▪Мир вокруг | B28: ▪Специалист дошкольного образования ▪Психолог | C28: 2 раза/нед. - 1ч15мин | D28: 8 | E28: 4800 | G28: 700 | H28: 600
A31: АНГЛИЙСКИЙ КЛУБ
A33: Возраст | B33: Специалисты | C33: График | D33: кол-во посещений | E33: стоимость | F33: Стоимость в комплексе | G33: Разовое посещение | H33: Пробное
A34: АНГЛИЙСКИЙ КЛУБ 2+ | B34: ▪Специалист по английскому языку | C34: 2 раза/нед. Х 15 мин | D34: 8 посещений в месяц | E34: 1800 | F34: 1200 | G34: 250 | H34: 250
A35: АНГЛИЙСКИЙ КЛУБ 3+ | B35: ▪Специалист по английскому языку | C35: 2 раза/нед. Х 30 мин | D35: 8 посещений в месяц | E35: 4000 | F35: 3500 | G35: 600 | H35: 450
A36: АНГЛИЙСКИЙ КЛУБ 4+ | B36: ▪Специалист по английскому языку | C36: 2 раза/нед. Х 30 мин | D36: 8 посещений в месяц | E36: 4000 | F36: 3500 | G36: 600
A37: АНГЛИЙСКИЙ КЛУБ 5+ | B37: ▪Специалист по английскому языку | C37: 2 раза/нед. Х 45 мин | D37: 8 посещений в месяц | E37: 4400 | F37: 4000 | G37: 650
A38: СУББОТНИЙ АНГЛИЙСКИЙ КЛУБ 5+ | B38: ▪Специалист по английскому языку | C38: 1 раз/нед. Х 30 мин | D38: 4 посещений в месяц | E38: 2500 | F38: 2250 | G38: 700
A39: АНГЛИЙСКИЙ КЛУБ "АМАНИКА" 5-8 лет (суббота) | B39: ▪Специалист по английскому языку | C39: 1 раз/нед. Х 90 мин | D39: 4 посещений в месяц | E39: 4000 | F39: 4000 | G39: 1400 | H39: 700
A40: ТВОРЧЕСКИЕ МАСТЕРСКИЕ
A42: Возраст | B42: Специалисты | C42: График | D42: кол-во посещений | E42: стоимость | F42: Стоимость в КОМПЛЕКСЕ | G42: Разовое посещение | H42: Пробное посещение
A43: АКТЕРСКОЕ МАСТЕРСТВО (5-8 лет) | B43: специалист | C43: 2 раза/нед. Х 45 мин | D43: 8 в месяц | E43: 4800 | F43: 3500 | G43: 800 | H43: 500
A44: СЕНД-АРТ (3-8 лет) | B44: ▪Художник | C44: 1 раза/нед. Х 40 мин. | D44: 4 в месяц | E44: 1600 | F44: 1000 | G44: - | H44: 500
A45: АРТСТУДИЯ (3-8 лет) | B45: ▪Художник | C45: 1 раза/нед. Х 30 мин\45 мин. | D45: 4 в месяц | E45: 2500 | F45: 2000 | G45: 650 | H45: 400
A47: Малокомплектная группа - Группа по 3-4 человек + 10% от стоимости

Sheet ДС ВЕРБНАЯ 23-24
C1: Утверждено Советом Учредителей
C2: ЧДОУ «Школа Кенгуру»
C3: Протокол № _______ | H3: от 14.08.2023 г.
C4: Директор________ | H4: Шепелина Е.М.
E5: 2023-2024 уч.г.
B6: Наименование услуги | C6: Стоимость услуги, руб/мес. Для действующих договоров | D6: пол дня | E6: Стоимость услуги, руб/мес. Для новых договоров | F6: Пол дня | G6: Стоимость услуги, руб/час. при покупке Абонемента на 10часов | H6: Стоимость услуги, руб/час. при покупке Абонемента на 20часов | I6: Стоимость услуги, руб/час. при покупке Абонемента на 30часов | J6: Стоимость услуги, руб/час. при покупке Абонемента на 60часов
A7: ЯСЛИ 1,5-2,11
A8: УСЛУГИ ДЕТСКОГО САДА : | C8: 22,500 | D8: 15,000 | E8: 24,500 | F8: 16,000 | G8: 5,000 | H8: 7000 | I8: 9000 | J8: 15000
B9: Уход и присмотр | C9: 16000 | D9: 8500 | E9: 17500 | F9: 9000 | G9: 500р/час | H9: 350р/час | I9: 300р/час | J9: 250р/час
B10: Дошкольное образование | C10: 6500 | D10: 6500 | E10: 7000 | F10: 7000
A11: ДОПОЛНИТЕЛЬНЫЕ УСЛУГИ:
B12: "БАЗА-раннее детство"- 2р\нед | C12: 1000 | G12: 1500
B13: Baby-English 2р\нед | C13: 750 | G13: 1400
B14: Sand-art 1 р\нед | C14: 250 | G14: 1000
A15: САД 3-7 лет
A16: УСЛУГИ ДЕТСКОГО САДА : | C16: 22,500 | D16: 15,000 | E16: 24,500 | F16: 16,000 | G16: 5,000 | H16: 7000 | I16: 9000 | J16: 15000
B17: Уход и присмотр | C17: 16000 | D17: 8500 | E17: 17500 | F17: 9000 | G17: 500р/час | H17: 350р/час | I17: 300р/час | J17: 250р/час
B18: Дошкольное образование | C18: 6500 | D18: 6500 | E18: 7000 | F18: 7000
A19: ДОПОЛНИТЕЛЬНЫЕ УСЛУГИ: | C19: Цена отдельного предмета | D19: Цена в комплексе
A20: Базовый Пакет (Игры по правилам+ Формирование Связной речи+хореография ) | D20: 3800
A21: (2000+1500+300)+1200 | B21: Пакет+англ | D21: 5000
A22: (2000+1500+300)+1200+1200 | B22: Пакет+англ.+футбол | D22: 6200
A23: (2000+1500+300)+1200+120+1200 | B23: Пакет+англ.+футбол+шахматы | D23: 7400
A24: (2000+1500+300)+1200 | B24: Пакет+футбол | D24: 5000
A25: (2000+1500+300)+1200 | B25: Пакет+шахматы | D25: 5000
B26: Английский язык | C26: 4500
B27: Футбол 1р\нед | C27: 2500
B28: Шахматы 1р\нед | C28: 2500
B29: Арт-студия | C29: 3000 | D29: в ком-кс 5000
B30: Чтение | D30: 250 (2000/мес)
B31: РОБОТОТЕХНИКА -1 р/нед (4-8 лет) | C31: 2500 | D31: 2500

Sheet ДС Кызыл 23-24
A1: 9 | C1: Утверждено Советом Учредителей
C2: ЧДОУ «Школа Кенгуру»
C3: Протокол № _______ | H3: от 14.08.2023 г.
C4: Директор________ | H4: Шепелина Е.М.
E5: 2023-2024 уч.г.
B6: Наименование услуги | C6: Стоимость услуги, руб/мес. Для действующих договоров | D6: пол дня | E6: Стоимость услуги, руб/мес. Для новых договоров | F6: Пол дня | G6: Стоимость услуги, руб/час. при покупке Абонемента на 10часов | H6: Стоимость услуги, руб/час. при покупке Абонемента на 20часов | I6: Стоимость услуги, руб/час. при покупке Абонемента на 30часов | J6: Стоимость услуги, руб/час. при покупке Абонемента на 60часов
A7: ЯСЛИ 1,5-2,11
A8: УСЛУГИ ДЕТСКОГО ясли : | C8: 20,500 | D8: 13,000 | E8: 22,500 | F8: 15,000 | G8: 5,000 | H8: 7000 | I8: 9000 | J8: 15000
B9: Уход и присмотр | C9: 15000 | D9: 7500 | E9: 16000 | F9: 9000 | G9: 500р/час | H9: 350р/час | I9: 300р/час | J9: 250р/час
B10: Дошкольное образование | C10: 5500 | D10: 5500 | E10: 6500 | F10: 6000
A11: ДОПОЛНИТЕЛЬНЫЕ УСЛУГИ:
B12: "БАЗА-раннее детство"- 2р\нед | C12: 1000 | G12: 1500
B13: Baby-English 2р\нед | C13: 750 | G13: 1400
B14: Sand-art 1 р\нед | C14: 250 | G14: 1000
A15: САД 3-7 лет
A16: УСЛУГИ ДЕТСКОГО САДА : | C16: 22,500 | D16: 15,000 | E16: 24,500 | F16: 16,000 | G16: 5,000 | H16: 7000 | I16: 9000 | J16: 15000
B17: Уход и присмотр | C17: 16000 | D17: 8500 | E17: 17500 | F17: 9000 | G17: 500р/час | H17: 350р/час | I17: 300р/час | J17: 250р/час
B18: Дошкольное образование | C18: 6500 | D18: 6500 | E18: 7000 | F18: 7000
B19: Пакет старт | C19: 5,000
A20: ДОПОЛНИТЕЛЬНЫЕ ГРУППОВЫЕ УСЛУГИ: | C20: Цена отдельного предмета | D20: Цена в комплексе
B21: Английский язык 2р\нед | C21: 4800 | D21: 1500
B22: Арт. студия 1 р\нед | C22: 3000 | D22: 1200
B23: Актерское мастерство | C23: 3000 | D23: 1200
C24: =SUM(C21:C23) -> 10800 | D24: 3900
A25: 6+ | B25: Час с психологом | C25: 2000 | D25: 1000
B26: Футбол 1р\нед | C26: 2500 | D26: 2500
B27: Шахматы 1р\нед | C27: 3500 | D27: 2600
B28: РОБОТОТЕХНИКА -1 р/нед (4-8 лет) | C28: 3500 | D28: 2500
A29: ДОПОЛНИТЕЛЬНЫЕ ИНДИВИДУАЛЬНЫЕ УСЛУГИ: | C29: Цена отдельного занятия | D29: Цена от 4-х занятий
B30: Чтение 2 р/н 15 мин | C30: 280 | D30: 250 (2000/мес)
B31: Арткласс 1 р/неделю 60 мин | C31: 1300 | D31: 1100 (4000/мес)
B32: Занятие с психологом 1-2 р/неделю 40 мин | C32: 1600 | D32: 1400 (5600-11200/мес)
B33: Занятие с логопедом 1-2 р/неделю 30 мин | C33: 1400 | D33: 1200 (4800-9600/мес)

Sheet Скидки
C1: Утверждаю
C2: Директор ЧДОУ «Школа Кенгуру»
C3: __________________Шепелина Е.М.
A5: Льготы по оплате за образовательные услуги
B6: с 01.09.2021 г.
A7: Категория | B7: Характеристика | C7: Скидка
A8: 1 | B8: Дети сотрудников | C8: 40%
A9: 2 | B9: При обучении двух детей из 1 семьи (скидка на 2-го ребенка) на меньшую стоимость договора | C9: 10%
A10: 4 | B10: продолжающие ( второй и последующие годы) | C10: 5%
A11: 5 | B11: Дети партнеров | C11: 10%
A12: 6 | B12: Дети-инвалиды | C12: 15%
A15: Скидки по двум и более категориям не суммируются.

Sheet Услуги специалистов
A1: , | D1: Утверждаю
D2: Директор ЧДОУ "Школа Кенгуру" Шепелина Е.М.
D3: 2021-08-19
D4: _________________
B5: ПРАЙС
B6: На консультационные услуги
B7: на 2021-22учебный год
A8: Психолог
A9: Вид услуги | C9: Не посещающие занятия в ЧДОУ «Школа Кенгуру» | D9: Ученики ЧДОУ «Школа Кенгуру»
A11: Консультирование | C11: 2000 | D11: 1800
A12: Диагностика ( "Готовность к школе"с выдачей результата) | C12: 2000 | D12: 1800
A13: Коррекционные занятия с психологом
B14: Не посещающие занятия в ЧДОУ | D14: Ученики ЧДОУ "Школа Кенгуру"
A15: 3+ | B15: 1100 | D15: 900
A16: 5+ | B16: 1200 | D16: 1000
A17: Научный консультант
A18: Блинова Л.Ф. | D18: 3000
A19: Нейропсихолог
C20: Не посещающие занятия в ЧДОУ «Школа Кенгуру» | D20: Ученики ЧДОУ «Школа Кенгуру»
A21: Комплекс: диагностика готовности к школе+ нейропсихологическая диагностика | C21: 4000 | D21: 3500
A22: Нейропсихологическая диагностика с выдачей результатов | C22: 3500 | D22: 3000
A23: Час с психологом (1 тренинг в неделю) 4 раза в месяц | C23: 3200 | D23: 2500
A27: Логопед
A28: Вид услуги | B28: Возраст | C28: Не посещающие занятия в ЧДОУ «Школа Кенгуру» | D28: Занимающиеся в ЧДОУ «Школа Кенгуру»
A29: Диагностика | B29: 3-4 года | C29: 1500 | D29: =C29*0.8 -> 1200
B30: 5-6 лет | C30: 1800 | D30: 1450
B31: 7-10 лет | C31: 1800 | D31: 1450
A32: Коррекционные занятия с логопедом
A33: Кол-во | B33: 1 | D33: 1400
A34: Кол-во | B34: 4 | D34: 1300/1000 акция до 1.04.2024
A35: Кол-во | B35: 10 | D35: 1200/900 до 1.04

Sheet ДС КА с 01.03.2022-2023 (hidden)
J1: Утверждено Советом Учредителей
J2: ЧДОУ «Школа Кенгуру»
J3: Протокол № _______ | L3: от 19.08.2021 г.
I4: ='КЛУБЫ 2023-2024'!E96303 -> #REF! | J4: Директор________ | L4: Шепелина Е.М.
C5: ПРАЙС
B6: на услуги детского сада по ул.Кызыл Армейская 4
E7: 2022-2023 уч.г.
A8: Наименование услуги | C8: Стоимость услуги на целый день, руб/мес. | E8: Стоимость услуги на пол дня руб/мес. | G8: Стоимость услуги адаптации руб/2 нед | I8: Пакет Старт ( 5 ДНЕЙ) | J8: Стоимость услуги, руб/час. при покупке Абонемента на 20 часов | K8: Стоимость услуги, руб/час. при покупке Абонемента на 30 часов | L8: Стоимость услуги, руб/час. при покупке Абонемента на 60 часов
A9: ЯСЛИ 1,5-2,11
A10: НОВЫЕ ДЕТИ С 01.09.2022 Г | C10: 20500 | E10: 13000 | G10: 7500 | J10: 300 | K10: 250 | L10: 200
A11: Уход и присмотр | C11: 15000 | E11: 7500 | G11: - | J11: =J10-J12 -> 235 | K11: 185 | L11: 135
A12: Дошкольное образование: -лепка/аппликация 1р/нед - рисование 1р/нед - развитие движений 2 р/нед - развитие речи,окружающий мир 1р/нед -игры со строительным материалом 1р/нед - игры с дид.материалом 1р/нед - педагог-психолог 2 р/нед | C12: 5500 | E12: 5500 | G12: - | J12: 65 | K12: 65 | L12: 65
A13: УСЛУГИ ЯСЛИ | C13: =C14+C15 -> 17,500 | E13: 12,000 | G13: 6,600 | I13: 3000 | J13: 270 | K13: 220 | L13: 170
A14: Уход и присмотр | C14: 14000 | E14: 9300 | G14: - | J14: 240 | K14: 190 | L14: 140
A15: Дошкольное образование: -лепка/аппликация 1р/нед - рисование 1р/нед - развитие движений 2 р/нед - развитие речи,окружающий мир 1р/нед -игры со строительным материалом 1р/нед - игры с дид.материалом 1р/нед - педагог-психолог 2 р/нед | C15: 3500 | E15: 3500 | G15: - | J15: 30 | K15: 30 | L15: 30
A16: ДОПОЛНИТЕЛЬНЫЕ УСЛУГИ: | C16: Цена отдельного курса | E16: Цена в комплексе (не менее 3-х предметов)
A17: Baby English- 2р\нед | C17: 1600 | E17: 800
A18: "БАЗА-раннее детство" 2р\нед | C18: 2800 | E18: 1500
A19: Baby балет -2 р/неделю | C19: 1600 | E19: 400
A20: комплекс | C20: =C17+C18+C19 -> 6000 | E20: =E17+E18+E19 -> 2700
A25: САД 3-7 лет
A26: УСЛУГИ ДЕТСКОГО САДА : | C26: =C27+C28 -> 20,500 | E26: =E27+E28 -> 13,000 | G26: =30*250 -> 7,500 | J26: 300 | K26: 250 | L26: 200
A27: Уход и присмотр продолжающие | C27: 15000 | E27: 7500 | G27: - | J27: =J26-J28 -> 235 | K27: 185 | L27: 135
A28: Дошкольное образование: -педагог развивающего курса 2 р/нед - музыкальный руководитель 2 р/нед - логопед 1 р/нед (средняя группа), 2 р/н (старшая и подготовительная группа) - педагог-психолог 1 р/нед -Send Art 1 р/н | C28: 5500 | E28: 5500 | G28: - | J28: 65 | K28: 65 | L28: 65
A29: новые клиенты с 01.03.2022 | C29: =C30+C31 -> 22,500 | E29: =E30+E31 -> 14,250 | G29: =30*250 -> 7,500 | I29: 3000 | J29: 300 | K29: 250 | L29: 200
A30: Уход и присмотр | C30: 16500 | E30: =16500/2 -> 8250 | G30: - | J30: =J29-J31 -> 235 | K30: 185 | L30: 135
A31: Дошкольное образование новые клиенты: -педагог развивающего курса 2 р/нед - музыкальный руководитель 2 р/нед - логопед 1 р/нед (средняя группа), 2 р/н (старшая и подготовительная группа) - педагог-психолог 1 р/нед -Send Art 1 р/н | C31: 6000 | E31: 6000 | G31: - | J31: 65 | K31: 65 | L31: 65
C32: Цена отдельного курса по прайсу центра | E32: Цена в комплексе (не мене3-х предметов)
A33: Английский язык 2р\нед | C33: 3500 | E33: 1500
A34: Арт. студия 1 р\нед | C34: 2000 | E34: 800
A35: Хореография 2 р\нед | C35: 3000 | E35: 1000
A36: Час с психологом с психологом (1 тренинг в неделю) | C36: 2500
B37: Итого: | C37: =C33+C34+C36+C35 -> 11000 | E37: =E33+E34+E36+E35 -> 3300
A38: ДОПОЛНИТЕЛЬНЫЕ ИНДИВИДУАЛЬНЫЕ УСЛУГИ: | C38: Цена отдельного занятия | E38: Цена от 4-х занятий
A39: Чтение 2 р/н 15 мин | C39: 250 | E39: 200 (1600/мес)
A40: Арткласс 1 р/неделю 60 мин | C40: 1200 | E40: 1000 (4000/мес)
A41: Занятие с психологом 1-2 р/неделю 40 мин | C41: 1600 | E41: 1400 (5600-11200/мес)
A42: Занятие с логопедом 1-2 р/неделю 30 мин | C42: 1400 | E42: 1200 (4800-9600/мес)

Sheet ДС Вербная 2022-2023 (hidden)
I1: Утверждено Советом Учредителей
I2: ЧДОУ «Школа Кенгуру»
I3: Протокол № _______ | K3: от 19.08.2021 г.
I4: Директор________ | K4: Шепелина Е.М.
B5: ПРАЙС
A6: на услуги детского сада по ул.Вербная 1а
C7: 2022-202 3уч.г.
A8: Наименование услуги | B8: Стоимость услуги на целый день, руб/мес. | D8: Стоимость услуги на пол дня руб/мес. | F8: Стоимость услуги адаптации руб/2 нед | H8: Пакет Старт ( 5 ДНЕЙ) | I8: Стоимость услуги, руб/час. при покупке Абонемента на 20 часов | J8: Стоимость услуги, руб/час. при покупке Абонемента на 30 часов | K8: Стоимость услуги, руб/час. при покупке Абонемента на 60 часов
A9: ЯСЛИ
A10: УСЛУГИ ДЕТСКОГО САДА (продолжающие) : | B10: =B11+B12 -> 19,000 | D10: =D11+D12 -> 12,000 | F10: =30*J10 -> 7,500 | H10: 3000 | I10: 300 | J10: 250 | K10: 200
A11: Уход и присмотр продолжающие | B11: 14000 | D11: 7000 | F11: - | I11: 270 | J11: 220 | K11: 170
A12: Дошкольное образование продолжающие: -лепка/аппликация 1р/нед - рисование 1р/нед - развитие движений 2 р/нед - развитие речи,окружающий мир 1р/нед -игры со строительным материалом 1р/нед - игры с дид.материалом 1р/нед - педагог-психолог 2 р/нед "БАЗА-раннее детство"(1.5-2,5 года)\Любознайка (2,-3,5 года)- 2р\недю | B12: 5000 | D12: 5000 | F12: - | I12: 30 | J12: 30 | K12: 30
A13: УСЛУГИ ДЕТСКОГО САДА (новые договора) : | B13: =B14+B15 -> 20,500 | D13: =D14+D15 -> 13,000 | H13: 3000 | I13: 300 | J13: 250 | K13: 200
A14: Уход и присмотр (новые договора) | B14: 15000 | D14: 7500 | F14: - | I14: 270 | J14: 220 | K14: 170
A15: Дошкольное образование (новые договора) : -лепка/аппликация 1р/нед - рисование 1р/нед - развитие движений 2 р/нед - развитие речи,окружающий мир 1р/нед -игры со строительным материалом 1р/нед - игры с дид.материалом 1р/нед - педагог-психолог 2 р/нед "БАЗА-раннее детство"(1.5-2,5 года)\Любознайка (2,-3,5 года)- 2р\недю | B15: 5500 | D15: 5500 | F15: - | I15: 30 | J15: 30 | K15: 30
A16: ДОПОЛНИТЕЛЬНЫЕ ОБРАЗОВАТЕЛЬНЫЕ УСЛУГИ | B16: Цена отдельного курса | D16: Цена в комплексе (не мене3-х предметов)
A17: Английский язык -2 р/неделю | B17: 1600 | D17: 700
A18: Sand Art 1 р\нед | B18: 1200 | D18: 400
A19: Baby балет -2 р/неделю | B19: 1600 | D19: 400
A20: Итого: | B20: =SUM(B17:C19) -> 4,400 | D20: 1,500
A21: САД 3-7 лет
A22: УСЛУГИ ДЕТСКОГО САДА (продолжающие) : | B22: =B23+B24 -> 19,000 | D22: =D23+D24 -> 12,000 | F22: =30*J22 -> 7,500 | H22: 3000 | I22: 300 | J22: 250 | K22: 200
A23: Уход и присмотр продолжающие | B23: 14000 | D23: 7000 | F23: - | I23: =I22-I24 -> 235 | J23: 185 | K23: 135
A24: Дошкольное образование продолжающие: - Музыка 2р/нед -Физкультура 2р/нед -Математическое развитие 2р/нед -Подготовка руки к письму1р/нед -Обучение грамоте,развитие речи 3р/нед -Основы науки естествознания 1р/нед -Рисование 1/нед -Аппликация/Лепка 1р/нед -Конструирование 1р/нед - логопедическая диагностика - педагог-психолог | B24: 5000 | D24: 5000 | F24: - | I24: 65 | J24: 65 | K24: 65
A25: новые клиенты с 01.01.2022 | B25: =B26+B27 -> 20500 | D25: =D26+D27 -> 13,000 | F25: =30*J25 -> 7,500 | H25: 3000 | I25: 300 | J25: 250 | K25: 200
A26: Уход и присмотр начинающие | B26: 15000 | D26: 7500 | F26: - | I26: 270 | J26: 220 | K26: 170
A27: Дошкольное образование начинающие: - Музыка 2р/нед -Физкультура 2р/нед -Математическое развитие 2р/нед -Подготовка руки к письму1р/нед -Обучение грамоте,развитие речи 3р/нед -Основы науки естествознания 1р/нед -Рисование 1/нед -Аппликация/Лепка 1р/нед -Конструирование 1р/нед - логопедическая диагностика - педагог-психолог | B27: 5500 | D27: 5500 | F27: - | I27: 30 | J27: 30 | K27: 30
B28: Цена отдельного курса | D28: Цена в комплексе (не мене3-х предметов)
A29: Английский язык -2 р/неделю | B29: 3500 | D29: 1750
A30: Учусь говорить красиво. Курс развития связной речи.- 1 р/нед. | B30: 2000 | D30: 1000
A31: Арт. студия 1 р\нед | B31: 2500 | D31: 1000
A32: Хореография 2 р\нед | B32: 3000 | D32: 1500
A33: Игры по правилам (Час с психологом) 2 р/нед. | B33: 2000 | D33: 1000
A34: Театр 2 р/нед | B34: 3000 | D34: 1500
A35: Городок в городке (1 раз в неделю) | B35: 3500 | D35: 3500
A38: Итого: | B38: =SUM(B29:C35) -> 19,500 | D38: =SUM(D29:E35)-1000 -> 10,250
A39: Чтение 2 р/н 15 мин | B39: 250 | D39: 200 (1600/мес)
A40: Арткласс 1 р/неделю 60 мин | B40: 1200 | D40: 1000 (4000/мес)
A41: Занятие с психологом 1-2 р/неделю 40 мин | B41: 1600 | D41: 1400 (5600-11200/мес)
A42: Занятие с логопедом 1-2 р/неделю 30 мин | B42: 1400 | D42: 1000 занятие (10 запнятий)

Sheet КЛУБ Серова- Спартаковскася 21- (hidden)
A1: ПРАЙС
A2: Услуг для детей по досуговой деятельности на 2021-2022 учебный год
A3: ИГРОВЫЕ РАЗВИВАЮЩИЕ КОМПЛЕКСЫ 2 РАЗА В НЕДЕЛЮ
B4: Стартовый комплект-комплекс
B5: для 5 - 6 лет | C5: для 3 - 4 года | D5: Я сам | E5: выходного дня
B6: 4000 | C6: 2700 | D6: 1500 | E6: 3200
A7: Возраст | B7: Специалисты | C7: График | D7: кол-во занятий | E7: стоимость | F7: Стоимость в КОМПЛЕКСЕ с другими предметами | G7: Разовое занятие(родитель+ребенок) | H7: пробное
A8: "МАМА+МАЛЫШ" развивающие занятия для детей от1г до3х лет | B8: ▪педагог раннего развития | C8: 8 встреч в месяц | D8: 8 занятий в месяц | E8: 3500 | F8: 3000 | G8: 500 | H8: 250
A9: АРТ СТУДИЯ ДЛЯ МАМ И МАЛЫШЕЙ | B9: ▪педагог раннего развития | C9: 4 встреч в месяц | D9: 4 занятия в месяц | E9: 1200 | F9: 800 | G9: 350 | H9: 250
A10: 3 года + "Я ПОЗНАЮ МИР": ▪ Развивающий игровой курс 3+ ▪Английский клуб ▪Сопровождение психолога (Диагностика и игры) ▪Диагностика логопедическая с выдачей рекомендаций ▪2 тренинга для родителей | B10: ▪Специалист дошкольного образования ▪Специалист английского языка ▪Психолог | C10: 2 раза/нед. -1ч15мин | D10: 16 | E10: 5800 | H10: 500
A11: 4 года + "Я МОДЕЛИРУЮ МИР": ▪ Развивающий игровой курс 4+ ▪Английский клуб ▪Сопровождение психолога (Диагностика и игры) ▪Диагностика логопедическая с выдачей рекомендаций ▪2 тренинга для родителей | B11: ▪Специалист дошкольного образования ▪Специалист английского языка ▪Психолог | C11: 2 раза/нед. - 1.5ч | D11: 16 | E11: 5800
A12: 5-7 лет "ПРЕДШКОЛА" ▪ Развивающий игровой курс 5+ (или 6+) ▪Английский клуб ▪Сопровождение психолога (Диагностика и занятия) ▪Диагностика логопедическая с выдачей рекомендаций ▪2 тренинга для родителей | B12: ▪Специалист дошкольного образования ▪Специалист английского языка ▪Психолог | C12: 2 раза/нед. - 2ч | D12: 16 | E12: 6200
A13: ИГРОВЫЕ РАЗВИВАЮЩИЕ КОМПЛЕКСЫ ВЫХОДНОГО ДНЯ
A14: Возраст | B14: Специалисты | C14: График | D14: кол-во посещений\занятий | E14: стоимость | F14: Пробное занятие
A15: 3 года + "Я ПОЗНАЮ МИР": ▪ Развивающий игровой курс 3+ ▪Английский клуб ▪ Арт-студия ▪Диагностика психолога ▪2 тренинга для родителей, , | B15: ▪Специалист по раннему развитию ▪Специалист английского языка ▪Специалист артстудии ▪Психолог | C15: 1 раз/нед. 1ч15мин-1ч45мин | D15: 8 | E15: 4500 курс без тестопластики - 3600 | F15: 600
A16: ИГРОВЫЕ РАЗВИВАЮЩИЕ КУРСЫ
C17: стартовый комплект | D17: 2000
A18: Возраст | B18: Специалисты | C18: График | D18: кол-во посещений\занятий | E18: стоимость | F18: Пробное занятие
A19: Развивающий игровой КУРС Я САМ 2.5 года + ▪Развивающий комплекс ▪ Тестопластика\Рисование ▪ Психолог | B19: ▪Специалист по раннему развитию ▪Психолог | C19: 2 раза/нед. - 50 минут | D19: 8 | E19: 4000 | F19: 500
A20: Развивающий игровой КУРС 3 года + ▪Веселая математика ▪Играем с кубиками Зайцева ▪Пальчиковые игры ▪Мир вокруг ▪Диагностика логопеда | B20: ▪Специалист дошкольного образования ▪Психолог | C20: 2 раза/нед. - 45 минут | D20: 8 | E20: 4000
A21: Развивающий игровой КУРС 4 года + ▪Веселая математика ▪Играем с кубиками Зайцева ▪Пальчиковые игры ▪Мир вокруг ▪Диагностика логопеда | B21: ▪Специалист дошкольного образования ▪Психолог | C21: 2 раза/нед. - 1 час | D21: 8 | E21: 4000
A22: Развивающий предшкольный КУРС 5+ ▪Веселая математика ▪Играем с кубиками Зайцева ▪Пальчиковые игры ▪Мир вокруг ▪ Логика ▪Развивающие игры В.Воскобовича ▪Диагностика логопеда | B22: ▪Специалист дошкольного образования ▪Психолог | C22: 2 раза/нед. - 1ч15мин | D22: 8 | E22: 4500
A23: 6 лет( 2 половина года) Экспресс - курс "ПРЕДШКОЛА" ▪ ▪Развивающие игры В.Воскобовича ▪ Кубики Зайцева | B23: ▪Специалист по кубикам зайцева и играм В.Воскобовича | C23: 2 раза/нед. или 1 раз/нед по 45 мин | D23: 2021-04-08 | E23: 3500/2000
A24: АНГЛИЙСКИЙ КЛУБ
A25: АНГЛИЙСКИЙ КЛУБ 2+ | B25: ▪Специалист по английскому языку | C25: 2 раза/нед. Х 15 мин | D25: 8 занятий в месяц | E25: 1600 ( при покупке курса "Я сам" стоимость 1000 рублей, если услуга предоставляется в филиале ) | F25: 400
A26: АНГЛИЙСКИЙ КЛУБ 3+ | B26: ▪Специалист по английскому языку | C26: 2 раза/нед. Х 30 мин | D26: 8 занятий в месяц | E26: 3500
A27: АНГЛИЙСКИЙ КЛУБ 5+ | B27: ▪Специалист по английскому языку | C27: 2 раза/нед. Х 45 мин | D27: 8 занятий в месяц | E27: 4000
A28: Стартовый комплект = Стоимости учебного пособия. I can read и I can analyse (2ой год обучения) по данным ступеням пособия не покупает
A29: Возраст | B29: Специалисты | C29: График | D29: Продолжительность | E29: Стоимость в мес-ц 1 год | F29: Стоимость в КОМПЛЕКСЕ с другими предметами | G29: Разовое занятие(родитель+ребенок) | H29: пробное до 01.10.2021
A30: ТЕАТР СЛОВ (5-8 лет) | B30: ▪Логопед | C30: 1 раза/нед. Х 40 мин. | D30: 4 занятия в месяц | E30: 2500 | F30: 1800 | H30: 250
A31: СЕНД-АРТ (3-8 лет) | B31: ▪Художник | C31: 1 раза/нед. Х 40 мин. | D31: 4 занятия в месяц | E31: 1600 | F31: 1000 | H31: 250
A32: АРТСТУДИЯ (3-8 лет) | B32: ▪Художник | C32: 1 раза/нед. Х 30 мин\45 мин. | D32: 4 занятия в месяц | E32: 2000 | F32: 1500 | H32: 250
A33: Малокомплектная группа - Группа по 3-4 человек + 10% от стоимости курса

Sheet ДС КА до 02.2022 (hidden)
J1: Утверждено Советом Учредителей
J2: ЧДОУ «Школа Кенгуру»
J3: Протокол № _______ | L3: от 19.08.2021 г.
J4: Директор________ | L4: Шепелина Е.М.
C5: ПРАЙС
B6: на услуги детского сада по ул.Кызыл Армейская 4
E7: 2020-2021 уч.г.
A8: Наименование услуги | C8: Стоимость услуги на целый день, руб/мес. | E8: Стоимость услуги на пол дня руб/мес. | G8: Стоимость услуги адаптации руб/2 нед | I8: Пакет Старт ( 5 ДНЕЙ) | J8: Стоимость услуги, руб/час. при покупке Абонемента на 20 часов | K8: Стоимость услуги, руб/час. при покупке Абонемента на 30 часов | L8: Стоимость услуги, руб/час. при покупке Абонемента на 60 часов
A9: ЯСЛИ 1,5-2,11
A10: УСЛУГИ ДЕТСКОГО САДА : | C10: =C11+C12 -> 17,500 | E10: =E11+E12 -> 10,800 | G10: 6,600 | I10: 3000 | J10: 270 | K10: 220 | L10: 170
A11: Уход и присмотр | C11: 14000 | E11: 7300 | G11: - | J11: 240 | K11: 190 | L11: 140
A12: Дошкольное образование: -лепка/аппликация 1р/нед - рисование 1р/нед - развитие движений 2 р/нед - развитие речи,окружающий мир 1р/нед -игры со строительным материалом 1р/нед - игры с дид.материалом 1р/нед - педагог-психолог 2 р/нед | C12: 3500 | E12: 3500 | G12: - | J12: 30 | K12: 30 | L12: 30
A13: ДОПОЛНИТЕЛЬНЫЕ УСЛУГИ: | C13: Цена отдельного курса | E13: Цена в комплексе (не менее 3-х предметов)
A14: Baby English- 2р\нед | C14: 1600 | E14: 800
A15: "БАЗА-раннее детство" 2р\нед | C15: 2800 | E15: 1500
A16: Baby балет -2 р/неделю | C16: 1600 | E16: 400
A17: комплекс | C17: =C14+C15+C16 -> 6000 | E17: =E14+E15+E16 -> 2700
A18: САД 3-7 лет
A19: УСЛУГИ ДЕТСКОГО САДА : | C19: =C20+C21 -> 18,500 | E19: =E20+E21 -> 11,800 | G19: 7,100 | I19: =I20+I21 -> 340 | J19: 290 | K19: 240 | L19: 190
A20: Уход и присмотр | C20: 14000 | E20: 7300 | G20: - | I20: 275 | J20: 225 | K20: 175 | L20: 125
A21: Дошкольное образование: -педагог развивающего курса 2 р/нед - музыкальный руководитель 2 р/нед - логопед 1 р/нед (средняя группа), 2 р/н (старшая и подготовительная группа) - педагог-психолог 1 р/нед -Send Art 1 р/н | C21: 4500 | E21: 4500 | G21: - | I21: 65 | J21: 65 | K21: 65 | L21: 65
A22: ДОПОЛНИТЕЛЬНЫЕ УСЛУГИ: | C22: Цена отдельного курса по прайсу центра | E22: Цена в комплексе (не мене3-х предметов)
A23: Английский язык 2р\нед | C23: 3500 | E23: 1500
A24: Арт. студия 1 р\нед | C24: 2000 | E24: 800
A25: Хореография 2 р\нед | C25: 3000 | E25: 1000
A26: Час с психологом с психологом (1 тренинг в неделю) | C26: 2500 | E26: 1500
B27: Итого: | C27: =C23+C24+C26+C25 -> 11000 | E27: =E23+E24+E26+E25 -> 4800
A28: ДОПОЛНИТЕЛЬНЫЕ ИНДИВИДУАЛЬНЫЕ УСЛУГИ: | C28: Цена отдельного занятия | E28: Цена от 4-х занятий
A29: Чтение 2 р/н 15 мин | C29: 250 | E29: 200 (1600/мес)
A30: Арткласс 1 р/неделю 60 мин | C30: 1200 | E30: 1000 (4000/мес)
A31: Занятие с психологом 1-2 р/неделю 40 мин | C31: 1600 | E31: 1400 (5600-11200/мес)
A32: Занятие с логопедом 1-2 р/неделю 30 мин | C32: 1400 | E32: 1200 (4800-9600/мес)

Sheet ДС Вербная 31.12.2021 (hidden)
A1: 6н7 | I1: Утверждено Советом Учредителей
I2: ЧДОУ «Школа Кенгуру»
I3: Протокол № _______ | K3: от 19.08.2021 г.
I4: Директор________ | K4: Шепелина Е.М.
B5: ПРАЙС
A6: на услуги детского сада по ул.Вербная 1а
C7: 2021-2022 уч.г.
A8: Наименование услуги | B8: Стоимость услуги на целый день, руб/мес. | D8: Стоимость услуги на пол дня руб/мес. | F8: Стоимость услуги адаптации руб/2 нед | H8: Пакет Старт ( 5 ДНЕЙ) | I8: Стоимость услуги, руб/час. при покупке Абонемента на 20 часов | J8: Стоимость услуги, руб/час. при покупке Абонемента на 30 часов | K8: Стоимость услуги, руб/час. при покупке Абонемента на 60 часов
A9: ЯСЛИ
B10: =B11+B12 -> 17,500 | D10: =D11+D12 -> 10,800 | F10: 6,600 | H10: 3000 | I10: 270 | J10: 220 | K10: 170
A11: Уход и присмотр | B11: 13000 | D11: 6300 | F11: - | I11: 240 | J11: 190 | K11: 140
A12: Дошкольное образование: -лепка/аппликация 1р/нед - рисование 1р/нед - развитие движений 2 р/нед - развитие речи,окружающий мир 1р/нед -игры со строительным материалом 1р/нед - игры с дид.материалом 1р/нед - педагог-психолог 2 р/нед "БАЗА-раннее детство"(1.5-2,5 года)\Любознайка (2,-3,5 года)- 2р\недю | B12: 4500 | D12: 4500 | F12: - | I12: 30 | J12: 30 | K12: 30
B13: Цена отдельного курса | D13: Цена в комплексе (не мене3-х предметов)
A14: Английский язык -2 р/неделю | B14: 1600 | D14: 700
A15: Sand Art 1 р\нед | B15: 1200 | D15: 400
A16: Baby балет -2 р/неделю | B16: 1600 | D16: 400
A17: Итого: | B17: =SUM(B14:C16) -> 4,400 | D17: 1,500
B19: =B20+B21 -> 17,500 | D19: =D20+D21 -> 10,800 | F19: 7,100 | H19: =H20+H21 -> 340 | I19: 290 | J19: 240 | K19: 190
B20: 13000 | D20: 6300 | F20: - | H20: 275 | I20: 225 | J20: 175 | K20: 125
A21: Дошкольное образование: - Музыка 2р/нед -Физкультура 2р/нед -Математическое развитие 2р/нед -Подготовка руки к письму1р/нед -Обучение грамоте,развитие речи 3р/нед -Основы науки естествознания 1р/нед -Рисование 1/нед -Аппликация/Лепка 1р/нед -Конструирование 1р/нед - логопедическая диагностика - педагог-психолог | B21: 4500 | D21: 4500 | F21: - | H21: 65 | I21: 65 | J21: 65 | K21: 65
B22: Цена отдельного курса | D22: Цена в комплексе (не мене3-х предметов)
A23: Английский язык -2 р/неделю | B23: 3500 | D23: 1750
A24: Учусь говорить красиво. Курс развития связной речи.- 1 р/нед. | B24: 2000 | D24: 1000
A25: Арт. студия 1 р\нед | B25: 2000 | D25: 1000
A26: Хореография 2 р\нед | B26: 3000 | D26: 1500
A27: Игры по правилам (Час с психологом) 2 р/нед. | B27: 2000 | D27: 1000
A28: Музыкальный театр (Театр+вокал) 2 р/нед | B28: 2000 | D28: 1000
A29: Городок в городке (1 раз в неделю) | B29: 3200 | D29: 3200
A30: Итого: | B30: =SUM(B23:C29) -> 17,700 | D30: =SUM(D23:E29) -> 10,450
A31: Чтение 2 р/н 15 мин | B31: 250 | D31: 200 (1600/мес)
A32: Арткласс 1 р/неделю 60 мин | B32: 1200 | D32: 1000 (4000/мес)
A33: Занятие с психологом 1-2 р/неделю 40 мин | B33: 1600 | D33: 1400 (5600-11200/мес)
A34: Занятие с логопедом 1-2 р/неделю 30 мин | B34: 1400 | D34: 1200 (4800-9600/мес)

Sheet ЛЕТНИЙ КЛУБ 2022 (hidden)
A1: ЛЕТНИЙ КЛУБ 2022
A2: Наименование /Содержание | B2: Адрес/стоимость | C2: стоимость для Кенгуренка (СКИДКА 15%) | D2: кол-во детей | E2: Фон з/п педагога- 3 ч/день зп | F2: Фонд з-ты вожатого 8 часов /день | G2: Фонд з/платы вожатый в смену
A3: Лето в Школе Кенгуру - это синтез летних развивающих проектов от наших ведущих педагогов (Holiday Class) : Мультипликация, Театральное искусство, Лингвистика , Архитектура и дизайн, Артстудия, Танцевальный марафон. | B3: Серова 22/24, Спартаковская 88Б, офис 1023; Вербная 1а; Кызыл Арейская 4а | E3: понед-пятница Серова Спартаковская | F3: вожатый
A4: На протяжении 10 дней ребята изучают не просто что-то новое для себя, но и защищают итоговый проект в конце смены. Также получают сертификат об успешном участии в проекте. | B4: 14000 | C4: 12000 | D4: 5 | E4: =250*3 -> 750 | F4: =D4*200 -> 1000 | G4: =F4*10 -> 10000
B5: 14000 | C5: 12000 | D5: 6 | E5: =300*3 -> 900 | F5: 1200 | G5: 12000
B6: 14000 | C6: 12000 | D6: 7 | E6: =350*3 -> 1050 | F6: 1400 | G6: 14000
B7: 14000 | C7: 12000 | D7: 8 | E7: =400*3 -> 1200 | F7: 1600 | G7: 16000
B8: 14000 | C8: 12000 | D8: 9 | E8: =450*3 -> 1350 | F8: 1800 | G8: 18000
B9: 14000 | C9: 12000 | D9: =D8+1 -> 10 | E9: =500*3 -> 1500 | F9: 2000 | G9: 20000
A10: Смена Полдня с питанием | B10: 8,500 | C10: 7,000 | D10: 11 | E10: 1500 | F10: 2200 | G10: 22000
A11: Смена Полдня без питания | B11: 7,000 | C11: 6,000 | D11: 12 | E11: 1500 | F11: 2400 | G11: 24000
A12: Один день | B12: 1500 | C12: 1200 | D12: 13 | E12: 1500 | F12: 2600 | G12: 26000
A13: Полдня с питанием | B13: 950 | C13: 800 | D13: 14 | E13: 1500 | F13: 2800 | G13: 28000
A14: Полдня без питания | B14: 800 | C14: 700 | D14: 15 | E14: 1500 | F14: 3000 | G14: 30000
C15: 11500 | G15: =F15+E15 -> 0
A16: При покупке двух смен стоимость | C16: =C15+C4 -> 23500 | G16: 0

Sheet Семинары (hidden)
E1: Утверждаю
E2: Директор ЧДОУ «Школа Кенгуру»
E3: Шепелина Е.М.
B5: ПРАЙС
B6: на семинары в 2017-2018 уч.г.
A8: № | B8: Наименование услуги | C8: Дата проведения | D8: Стоимость без скидки, руб. | E8: Стоимость со скидкой от 5 до 20% для партнеров, руб.
A9: 1 | B9: Эффективные технологии в предшкольном образовании (72 ч). | C9: Ноябрь 2017-Февраль 2018 | D9: 6500 | E9: 5,200
A10: 4 | B10: Методика обучения английскому языку детей от 3 до 9 лет (36 ч.) | C10: 2018-04-01 | D10: 25000 | E10: 22,000
A11: 7 | B11: Методики Зайцева (18ч.) | C11: 2018-04-01 | D11: 4400 | E11: 3,500
A12: 8 | B12: Игры Воскобовича. Макарова Т.В., Софронова Л.Б. (12 ч.) | C12: 2018-04-01 | D12: 3200 | E12: 1,600
